bitfinex/quotes_BTCUSD_20220111
["timestamp","ask_amount","ask_price","bid_price","bid_amount"]
[1641912860535,0.30838923,41666.0,41654.0,0.26935401]
[1641912860734,0.56086371,41666.0,41659.0,0.26690842]
[1641912860935,0.56086371,41666.0,41656.0,0.000718]
[1641912861141,0.47180337,41665.0,41656.0,0.000718]
[1641912861336,1.272,41662.0,41656.0,0.000718]
[1641912861534,0.060032,41660.0,41656.0,0.000718]
[1641912861735,0.374376,41659.0,41656.0,0.000718]
[1641912862133,0.29549189,41658.0,41657.0,0.00072555]
[1641912862334,0.58603389,41658.0,41657.0,0.00072555]
[1641912862736,0.53603389,41658.0,41657.0,0.00072555]
[1641912862991,0.58603389,41658.0,41657.0,0.00072555]
[1641912863286,1.85803389,41658.0,41657.0,0.00072555]
[1641912863485,1.85803389,41658.0,41655.0,0.00071256]
[1641912863689,0.624376,41656.0,41655.0,0.00071256]
[1641912863888,1.93787203,41656.0,41655.0,0.00071256]
[1641912864085,1.99187203,41656.0,41655.0,0.00071256]
[1641912865486,1.98787203,41656.0,41655.0,0.00071256]
[1641912865688,1.98787203,41656.0,41654.0,0.00071257]
[1641912865887,0.240542,41655.0,41654.0,0.00071257]
[1641912866087,1.512542,41655.0,41653.0,0.00071319]
[1641912866293,0.240542,41655.0,41653.0,0.00071319]
[1641912867034,0.11328507,41656.0,41653.0,0.00071319]
[1641912867233,0.11328507,41656.0,41652.0,0.00065799]
[1641912867431,0.11028507,41656.0,41652.0,0.00065799]
[1641912867832,1.646376,41655.0,41652.0,0.00065799]
[1641912868032,1.322,41654.0,41652.0,0.00065799]
[1641912868231,0.240542,41653.0,41652.0,0.00065799]
[1641912868433,0.240542,41653.0,41652.0,0.00131598]
[1641912868631,0.240542,41653.0,41652.0,0.00065799]
[1641912869433,0.06528507,41656.0,41652.0,0.00065799]
[1641912869434,0.06028507,41656.0,41652.0,0.00065799]
[1641912869633,0.374376,41655.0,41650.0,0.00066415]
[1641912869834,0.06028507,41656.0,41650.0,0.00066415]
[1641912870487,0.06028507,41656.0,41650.0,0.37349223]
[1641912870886,0.03468558,41656.0,41651.0,0.31411074]
[1641912871491,0.03468558,41656.0,41651.0,0.00073913]
[1641912871688,0.00025061,41655.0,41651.0,0.00073913]
[1641912872488,0.00025061,41655.0,41653.0,0.25367851]
[1641912873292,0.00025061,41655.0,41652.0,0.00073913]
[1641912874092,0.00225061,41655.0,41652.0,0.00073913]
[1641912874333,0.00225061,41655.0,41653.0,0.33829691]
[1641912874835,0.00225061,41655.0,41651.0,0.00070942]
[1641912875533,0.00025061,41655.0,41651.0,0.00070942]
[1641912875833,0.33153892,41653.0,41651.0,0.00070942]
[1641912876237,1.64758118,41652.0,41651.0,0.00070942]
[1641912876437,1.68359844,41652.0,41651.0,0.00070942]
[1641912876937,0.72967021,41651.0,41650.0,0.00070943]
[1641912877136,0.35,41650.0,41644.0,0.00283816]
[1641912877336,0.00121367,41645.0,41644.0,0.00283816]
[1641912877539,0.060051,41648.0,41644.0,0.00283816]
[1641912877736,0.00025061,41655.0,41645.0,0.374376]
[1641912878023,0.00025061,41655.0,41653.0,0.00122037]
[1641912878423,0.00025061,41655.0,41653.0,0.30561943]
[1641912878624,0.00025061,41655.0,41653.0,0.10122037]
[1641912878823,0.00025061,41655.0,41647.0,0.43619253]
[1641912879023,0.00025061,41655.0,41647.0,0.10124697]
[1641912879425,0.00025061,41655.0,41647.0,0.00124697]
[1641912879623,0.00025061,41655.0,41647.0,0.31235098]
[1641912880023,0.00025061,41655.0,41647.0,0.41235098]
[1641912880323,0.00125061,41655.0,41648.0,0.374376]
[1641912880522,0.00125061,41655.0,41648.0,0.474376]
[1641912881327,0.00125061,41655.0,41652.0,0.00120635]
[1641912881527,0.00025061,41655.0,41653.0,0.374376]
[1641912881937,0.00021441,41654.0,41653.0,0.474376]
[1641912882234,0.00021441,41654.0,41653.0,1.26424235]
[1641912882435,0.00492741,41656.0,41654.0,1.3]
[1641912882635,0.00492741,41656.0,41655.0,0.374376]
[1641912883035,1.647733,41666.0,41655.0,0.422376]
[1641912883233,0.374376,41665.0,41655.0,0.048]
[1641912883634,0.6099764,41657.0,41655.0,0.048]
[1641912884039,0.824376,41656.0,41648.0,0.00085801]
[1641912884237,0.86560755,41656.0,41655.0,0.01]
[1641912884436,1.4343524,41656.0,41655.0,0.01]
[1641912884637,2.7063524,41656.0,41655.0,0.01]
[1641912885037,3.27334589,41656.0,41655.0,0.01]
[1641912885237,4.49567706,41656.0,41655.0,0.01]
[1641912885493,4.49567706,41656.0,41648.0,0.00085797]
[1641912885494,0.4,41649.0,41648.0,0.00085797]
[1641912885693,2.28290228,41649.0,41648.0,0.00085797]
[1641912885892,1.3,41648.0,41638.0,0.00343274]
[1641912886095,0.46527985,41641.0,41626.0,0.9445]
[1641912886295,0.46527985,41641.0,41615.0,1.7303]
[1641912886296,1.91687504,41640.0,41615.0,2.4897]
[1641912886496,0.31290323,41618.0,41615.0,2.4897]
[1641912886692,0.31290323,41618.0,41613.0,0.9935]
[1641912886894,0.31290323,41618.0,41608.0,0.00120691]
[1641912887092,0.34308584,41616.0,41608.0,0.00120691]
[1641912887296,0.34308584,41616.0,41607.0,0.10382765]
[1641912887297,0.374376,41615.0,41607.0,0.10382765]
[1641912887596,0.05,41615.0,41607.0,0.09882765]
[1641912887792,0.05,41615.0,41602.0,0.43948808]
[1641912887994,0.30277337,41604.0,41601.0,0.01125508]
[1641912888197,0.30277337,41604.0,41601.0,0.01]
[1641912888593,0.36690988,41611.0,41601.0,0.01]
[1641912888793,0.374376,41610.0,41601.0,0.01]
[1641912888995,0.31222876,41609.0,41602.0,1.01992146]
[1641912889249,0.05,41610.0,41602.0,1.01992146]
[1641912889441,0.29880362,41606.0,41602.0,1.01992146]
[1641912889846,0.29880362,41606.0,41605.0,0.59246805]
[1641912890043,0.09092023,41612.0,41605.0,0.59246805]
[1641912890241,0.05,41611.0,41605.0,0.59246805]
[1641912890443,0.40701828,41610.0,41605.0,0.59246805]
[1641912890646,0.10365227,41607.0,41604.0,0.00085757]
[1641912890947,1.38274001,41603.0,41601.0,0.59246805]
[1641912891144,0.79179179,41604.0,41598.0,0.59601668]
[1641912891145,1.272,41601.0,41598.0,0.59601668]
[1641912891344,1.2,41598.0,41597.0,0.69135018]
[1641912891542,1.51541065,41598.0,41597.0,0.59145018]
[1641912891742,1.20245553,41598.0,41597.0,0.59145018]
[1641912892141,1.038542,41598.0,41597.0,0.59145018]
[1641912892343,0.292542,41598.0,41590.0,0.7898812]
[1641912892548,0.102,41598.0,41589.0,0.2983642]
[1641912893189,1.06800001,41601.0,41590.0,0.95]
[1641912893392,0.29902669,41600.0,41590.0,0.95]
[1641912893587,0.374376,41599.0,41590.0,1.05]
[1641912893788,0.060116,41597.0,41590.0,1.05]
[1641912894188,0.063115,41599.0,41590.0,1.05]
[1641912894389,0.063115,41599.0,41590.0,0.95]
[1641912894590,0.063115,41599.0,41590.0,1.05]
[1641912894791,0.003,41599.0,41591.0,0.00078143]
[1641912895391,1.275,41599.0,41591.0,0.00078143]
[1641912895690,0.05,41599.0,41596.0,0.26433961]
[1641912895890,0.110114,41599.0,41591.0,0.00078143]
[1641912896093,0.060114,41599.0,41593.0,0.00078141]
[1641912896289,0.063114,41599.0,41593.0,0.00078141]
[1641912896492,0.003,41599.0,41593.0,0.00078141]
[1641912896747,0.00029683,41598.0,41594.0,0.374376]
[1641912896942,0.00029683,41598.0,41594.0,0.70318878]
[1641912897142,0.00029683,41598.0,41594.0,0.80318878]
[1641912897342,0.07176598,41614.0,41594.0,0.80318878]
[1641912897343,0.02746598,41614.0,41606.0,0.26503469]
[1641912897644,0.0273156,41614.0,41606.0,0.26399869]
[1641912897846,0.0273156,41614.0,41609.0,0.29620006]
[1641912898042,0.0273156,41614.0,41606.0,0.1]
[1641912898243,1.272,41612.0,41606.0,0.004]
[1641912898445,1.31039405,41610.0,41606.0,0.004]
[1641912898644,0.640542,41607.0,41606.0,0.004]
[1641912898843,0.27397584,41607.0,41606.0,0.004]
[1641912899245,0.240542,41607.0,41606.0,0.004]
[1641912899446,0.240542,41607.0,41602.0,0.00080328]
[1641912899743,0.290542,41607.0,41602.0,0.0007129]
[1641912899945,0.060106,41605.0,41602.0,0.0007129]
[1641912900349,0.374376,41604.0,41602.0,0.0007129]
[1641912900588,2.212542,41603.0,41602.0,0.0007129]
[1641912900985,2.212542,41603.0,41601.0,0.00070652]
[1641912900986,1.30971732,41602.0,41601.0,0.00070652]
[1641912901185,1.706488,41602.0,41601.0,0.00070652]
[1641912901585,0.434488,41602.0,41601.0,0.00070652]
[1641912902187,0.434488,41602.0,41601.0,0.55380923]
[1641912902188,0.374376,41602.0,41601.0,0.55380923]
[1641912902387,0.005,41602.0,41599.0,0.00070654]
[1641912902588,1.190542,41600.0,41599.0,0.00070654]
[1641912902788,1.240542,41600.0,41599.0,0.00070654]
[1641912902991,1.24688162,41600.0,41599.0,0.00070654]
[1641912903185,1.24813311,41600.0,41599.0,0.00070654]
[1641912903389,1.63331182,41600.0,41598.0,0.00071742]
[1641912903587,2.406499,41599.0,41598.0,0.00071742]
[1641912903786,2.456499,41599.0,41598.0,0.00071742]
[1641912904242,2.460499,41599.0,41598.0,0.00071742]
[1641912904435,2.410499,41599.0,41596.0,0.00071168]
[1641912904635,0.434495,41598.0,41596.0,0.00071168]
[1641912904836,1.87531564,41597.0,41596.0,0.00071168]
[1641912905037,2.11585764,41597.0,41596.0,0.00071168]
[1641912905540,0.24181243,41597.0,41596.0,0.00071168]
[1641912905736,0.24181243,41597.0,41594.0,0.0007117]
[1641912905937,0.060123,41595.0,41594.0,0.0007117]
[1641912906137,1.572665,41595.0,41594.0,0.0007117]
[1641912906740,1.572665,41595.0,41582.0,0.52]
[1641912906741,0.374376,41591.0,41582.0,0.42]
[1641912906940,1.390542,41587.0,41586.0,0.00284502]
[1641912907139,0.25,41586.0,41577.0,0.42]
[1641912907337,0.00120721,41581.0,41577.0,0.42]
[1641912907539,1.272,41576.0,41571.0,0.42]
[1641912907839,0.05,41577.0,41571.0,0.42]
[1641912908091,0.060145,41578.0,41571.0,0.42]
[1641912908286,0.004,41576.0,41571.0,0.42]
[1641912909089,0.004,41576.0,41567.0,0.73563653]
[1641912909090,0.060152,41574.0,41567.0,0.73563653]
[1641912909288,1.272,41573.0,41567.0,0.42]
[1641912909490,1.63560266,41573.0,41563.0,0.60890938]
[1641912909689,0.28740026,41571.0,41563.0,0.60890938]
[1641912909890,0.31360266,41573.0,41563.0,0.60890938]
[1641912910092,1.332154,41572.0,41563.0,0.60890938]
[1641912910290,0.003,41571.0,41563.0,0.60890938]
[1641912910493,0.003,41571.0,41570.0,1.3268341]
[1641912910694,0.003,41571.0,41570.0,1.7012101]
[1641912910891,0.003,41571.0,41570.0,1.8012101]
[1641912911291,0.003,41571.0,41568.0,0.25646571]
[1641912911591,0.003,41571.0,41568.0,0.25732382]
[1641912911592,0.04728168,41570.0,41568.0,0.25732382]
[1641912911842,1.272,41569.0,41568.0,0.25732382]
[1641912912036,1.646376,41569.0,41568.0,0.25732382]
[1641912912239,0.374376,41569.0,41568.0,0.25732382]
[1641912912436,1.696,41569.0,41568.0,0.25732382]
[1641912912635,2.070376,41569.0,41568.0,0.25732382]
[1641912913041,1.04928902,41568.0,41566.0,0.00085813]
[1641912913242,0.99175616,41567.0,41566.0,0.00085813]
[1641912913438,5.07108664,41567.0,41566.0,0.00085813]
[1641912913637,2.68990781,41567.0,41566.0,0.00085813]
[1641912913839,3.34562558,41567.0,41566.0,0.00085813]
[1641912914036,7.62997751,41567.0,41564.0,0.34383434]
[1641912914237,0.924376,41565.0,41564.0,0.34383434]
[1641912914439,1.30469919,41565.0,41564.0,0.34383434]
[1641912914637,2.63204377,41565.0,41564.0,0.34383434]
[1641912915239,1.75172058,41565.0,41564.0,0.34297619]
[1641912915489,0.424376,41565.0,41564.0,0.34297619]
[1641912915687,0.374376,41565.0,41564.0,0.34297619]
[1641912916091,0.00670863,41567.0,41564.0,0.34297619]
[1641912916289,0.004,41565.0,41564.0,0.34297619]
[1641912916689,0.00121416,41567.0,41564.0,0.34297619]
[1641912917291,0.00121416,41567.0,41564.0,0.66111428]
[1641912917490,0.00121416,41567.0,41564.0,0.34297619]
[1641912917693,1.3,41569.0,41558.0,0.1]
[1641912917898,1.3,41569.0,41531.0,0.59187631]
[1641912917899,0.0999,41563.0,41552.0,0.1]
[1641912918101,0.00120215,41555.0,41552.0,0.53942647]
[1641912918398,0.00595047,41566.0,41552.0,0.43942647]
[1641912918592,2.41950493,41563.0,41552.0,0.43942647]
[1641912918891,2.41950493,41563.0,41546.0,0.00122513]
[1641912918892,1.512542,41562.0,41555.0,0.44424604]
[1641912919536,0.240542,41562.0,41555.0,0.54424604]
[1641912919735,0.06015861,41566.0,41558.0,0.45487943]
[1641912919934,0.374376,41565.0,41561.0,0.26397695]
[1641912920337,0.374376,41565.0,41555.0,0.54424604]
[1641912920338,0.005,41566.0,41556.0,0.31595977]
[1641912920534,0.005,41566.0,41556.0,0.1]
[1641912920736,0.06016318,41564.0,41556.0,0.1]
[1641912920938,0.00120611,41565.0,41557.0,0.28979977]
[1641912921137,0.005,41566.0,41557.0,0.28979977]
[1641912921138,0.005,41566.0,41558.0,0.474376]
[1641912921337,0.005,41566.0,41559.0,0.1]
[1641912921535,0.00120151,41574.0,41560.0,0.374376]
[1641912921736,0.374376,41573.0,41558.0,0.1]
[1641912921936,0.00120151,41574.0,41569.0,0.24572086]
[1641912922337,0.004,41573.0,41569.0,0.24572086]
[1641912923181,0.004,41573.0,41567.0,0.1]
[1641912923182,0.00479279,41573.0,41567.0,0.1]
[1641912923383,0.00479279,41573.0,41560.0,0.1]
[1641912923384,0.374376,41572.0,41560.0,0.1]
[1641912923587,1.272,41567.0,41560.0,0.1]
[1641912923784,1.96282346,41566.0,41560.0,0.1]
[1641912923985,2.10000252,41566.0,41555.0,0.44510447]
[1641912924285,2.10000252,41566.0,41555.0,0.44596282]
[1641912924286,1.272,41560.0,41555.0,0.44596282]
[1641912924482,1.332176,41559.0,41555.0,0.44510439]
[1641912924681,1.442354,41559.0,41555.0,0.44510439]
[1641912924882,1.552533,41559.0,41555.0,0.44510439]
[1641912925082,0.374376,41558.0,41555.0,0.44510439]
[1641912925281,1.27325803,41557.0,41555.0,0.44510439]
[1641912925485,1.27325803,41557.0,41555.0,0.44596268]
[1641912925486,0.75822504,41556.0,41555.0,0.44596268]
[1641912925683,0.5,41555.0,41551.0,0.01]
[1641912925885,0.824376,41552.0,41551.0,0.005]
[1641912926092,0.824376,41552.0,41544.0,0.1197]
[1641912926093,0.120392,41549.0,41544.0,0.1197]
[1641912926285,0.120392,41549.0,41528.0,0.573]
[1641912926286,0.23772887,41536.0,41531.0,0.1197]
[1641912926489,0.060208,41534.0,41531.0,0.1197]
[1641912926939,0.374376,41532.0,41531.0,0.1197]
[1641912927139,0.424376,41532.0,41531.0,0.1197]
[1641912927337,1.70158458,41532.0,41531.0,0.1197]
[1641912927538,0.08895459,41532.0,41531.0,0.1197]
[1641912927938,0.03895459,41532.0,41531.0,0.1197]
[1641912928140,1.31095459,41532.0,41531.0,0.1197]
[1641912928337,1.31595459,41532.0,41531.0,0.1197]
[1641912928938,3.69713342,41532.0,41531.0,0.1197]
[1641912929138,3.69713342,41532.0,41529.0,0.00044398]
[1641912929139,1.1,41531.0,41529.0,0.00044398]
[1641912929343,6.56118282,41530.0,41529.0,0.00044398]
[1641912929538,4.59625597,41530.0,41529.0,0.00044398]
[1641912929941,3.86154921,41530.0,41529.0,0.00044398]
[1641912930140,1.48345011,41530.0,41529.0,0.00044398]
[1641912930352,0.15721811,41530.0,41524.0,0.1197]
[1641912930603,0.00125503,41525.0,41523.0,0.1197]
[1641912930801,0.27056,41524.0,41523.0,0.1197]
[1641912931200,0.32056,41524.0,41523.0,0.1197]
[1641912931600,0.11022,41524.0,41523.0,0.1197]
[1641912931800,0.00568257,41526.0,41523.0,0.1197]
[1641912932003,0.04553982,41530.0,41523.0,0.1197]
[1641912932205,0.0443,41530.0,41526.0,0.1]
[1641912932402,0.0012164,41540.0,41526.0,0.1]
[1641912932403,0.0012164,41540.0,41527.0,0.6993015]
[1641912932603,0.0012164,41540.0,41533.0,0.31827596]
[1641912933007,0.0012164,41540.0,41533.0,0.41827596]
[1641912933202,0.0012164,41540.0,41533.0,0.1]
[1641912933402,0.0012164,41540.0,41528.0,0.1]
[1641912933602,0.00125683,41533.0,41526.0,0.1]
[1641912933802,0.00125683,41533.0,41522.0,0.168585]
[1641912934008,1.27324842,41528.0,41527.0,0.00085933]
[1641912934245,0.27180842,41528.0,41527.0,0.00085933]
[1641912934439,0.004,41533.0,41527.0,0.00085933]
[1641912934639,0.05,41528.0,41527.0,0.00085933]
[1641912934837,0.004,41533.0,41527.0,0.00085933]
[1641912935241,0.004,41533.0,41527.0,0.26977537]
[1641912935442,0.27056,41532.0,41528.0,0.24042282]
[1641912935640,0.0008403,41543.0,41528.0,0.56506551]
[1641912935841,0.00594814,41541.0,41528.0,0.56506551]
[1641912936040,0.00127486,41539.0,41529.0,0.0443]
[1641912936439,0.00127486,41539.0,41537.0,0.29491064]
[1641912936649,0.00084047,41543.0,41537.0,0.29491064]
[1641912936650,0.00084047,41543.0,41538.0,0.33013065]
[1641912936841,0.00084047,41543.0,41537.0,0.61805833]
[1641912937039,0.00084047,41543.0,41537.0,0.71805833]
[1641912937239,0.00084047,41543.0,41537.0,0.1]
[1641912937442,0.00084047,41543.0,41528.0,0.026]
[1641912937640,0.00126818,41542.0,41527.0,0.00189396]
[1641912937842,0.00126818,41542.0,41532.0,0.38922827]
[1641912938286,0.00126818,41542.0,41535.0,0.30282135]
[1641912938586,0.00126818,41542.0,41528.0,0.25675267]
[1641912938587,0.00526818,41542.0,41528.0,0.25675267]
[1641912938788,0.060195,41541.0,41532.0,0.1]
[1641912938985,0.060195,41541.0,41528.0,0.25675267]
[1641912939385,0.060195,41541.0,41528.0,0.30675267]
[1641912939586,0.01946642,41544.0,41531.0,1.3]
[1641912939786,0.120389,41545.0,41531.0,1.3]
[1641912939985,0.120389,41545.0,41532.0,0.00123454]
[1641912939986,0.00065704,41543.0,41532.0,0.00123454]
[1641912940387,0.00065704,41543.0,41537.0,0.63780149]
[1641912940587,0.00065704,41543.0,41537.0,0.085]
[1641912940887,0.00065704,41543.0,41531.0,1.425]
[1641912941088,0.04601592,41542.0,41538.0,0.00036057]
[1641912941286,0.00128331,41540.0,41538.0,0.00036057]
[1641912941488,0.120402,41541.0,41538.0,0.00036057]
[1641912941748,0.27056,41540.0,41538.0,0.00036057]
[1641912941949,1.27925705,41537.0,41523.0,0.20714636]
[1641912942141,0.0012775,41531.0,41523.0,0.20714636]
[1641912942341,0.30415495,41530.0,41523.0,0.20714636]
[1641912942541,0.060221,41526.0,41523.0,0.20714636]
[1641912942941,1.272,41525.0,41523.0,0.20714636]
[1641912943140,1.272,41525.0,41524.0,0.1003091]
[1641912943340,1.59256,41525.0,41524.0,0.1003091]
[1641912943543,1.64256,41525.0,41524.0,0.1003091]
[1641912943942,1.64256,41525.0,41523.0,0.19945546]
[1641912943943,0.27056,41524.0,41523.0,0.19945546]
[1641912944146,0.27056,41524.0,41517.0,0.86562051]
[1641912944346,0.165217,41525.0,41519.0,0.28547579]
[1641912944542,0.165217,41525.0,41519.0,0.38547579]
[1641912944742,0.165217,41525.0,41522.0,0.163585]
[1641912944947,0.055,41525.0,41522.0,0.163585]
[1641912945145,0.055,41525.0,41523.0,0.10031189]
[1641912945345,0.005,41525.0,41523.0,0.10031189]
[1641912945601,0.30901593,41535.0,41523.0,0.10031189]
[1641912945898,0.00767175,41536.0,41526.0,0.29452979]
[1641912946100,0.00078775,41533.0,41526.0,0.29452979]
[1641912946301,0.00078775,41533.0,41523.0,0.20031189]
[1641912946502,0.06099275,41533.0,41523.0,0.20031189]
[1641912946700,0.3700473,41532.0,41523.0,0.20031189]
[1641912946902,0.3700473,41532.0,41523.0,0.10031189]
[1641912946903,0.27056,41531.0,41523.0,0.10031189]
[1641912947101,0.27056,41531.0,41526.0,0.00065921]
[1641912947899,0.330768,41531.0,41526.0,0.00065921]
[1641912948298,0.330768,41531.0,41526.0,0.00130979]
[1641912948499,0.335768,41531.0,41526.0,0.00065058]
[1641912948701,0.27056,41527.0,41526.0,0.00065058]
[1641912948901,1.59256,41527.0,41526.0,0.00065058]
[1641912949341,1.64256,41527.0,41526.0,0.00065058]
[1641912949744,0.37056,41527.0,41524.0,0.00069762]
[1641912950141,0.27056,41527.0,41524.0,0.00069762]
[1641912950345,0.006,41527.0,41524.0,0.00069762]
[1641912950544,0.006,41527.0,41524.0,0.04499762]
[1641912950745,0.0001,41527.0,41524.0,0.04499762]
[1641912950941,0.0001,41527.0,41524.0,0.0443]
[1641912951141,0.0001,41527.0,41526.0,1.39272815]
[1641912951541,0.0001,41527.0,41526.0,1.49272815]
[1641912951741,0.00066389,41533.0,41526.0,1.49272815]
[1641912951942,0.00066804,41533.0,41526.0,0.95]
[1641912952148,0.00066804,41533.0,41526.0,0.1]
[1641912952343,0.27056,41532.0,41524.0,0.00069331]
[1641912952641,0.05,41531.0,41526.0,0.026]
[1641912952841,0.27056,41530.0,41526.0,0.026]
[1641912953093,0.32056,41530.0,41526.0,0.026]
[1641912953293,0.32056,41530.0,41526.0,0.02670486]
[1641912953697,0.32056,41530.0,41526.0,0.00070486]
[1641912953895,0.440991,41530.0,41526.0,0.00070486]
[1641912954393,0.060213,41528.0,41526.0,0.02170486]
[1641912954593,0.27056,41527.0,41526.0,0.02170486]
[1641912954795,0.32056,41527.0,41526.0,0.02170486]
[1641912954993,0.37056,41527.0,41526.0,0.67170486]
[1641912955193,0.1,41527.0,41526.0,0.67170486]
[1641912955394,0.006,41530.0,41526.0,0.67170486]
[1641912955594,0.006,41530.0,41526.0,0.671]
[1641912955794,0.0007061,41533.0,41526.0,0.65]
[1641912956195,0.0007061,41533.0,41524.0,0.00070245]
[1641912956196,0.00129921,41529.0,41524.0,0.00070245]
[1641912956395,0.2718145,41525.0,41524.0,0.00070245]
[1641912956595,0.3218145,41525.0,41524.0,0.00070245]
[1641912956839,0.3218145,41525.0,41523.0,0.10031189]
[1641912957039,0.05,41525.0,41523.0,0.10031189]
[1641912957241,0.1,41525.0,41523.0,0.10031189]
[1641912957442,0.12168813,41530.0,41523.0,0.10031189]
[1641912957741,0.05125213,41530.0,41526.0,0.25988117]
[1641912957940,0.05125213,41530.0,41523.0,0.10031189]
[1641912957941,0.05,41529.0,41523.0,0.10031189]
[1641912958140,1.27269551,41533.0,41523.0,0.10031189]
[1641912958340,0.27056,41532.0,41523.0,0.10031189]
[1641912958542,0.006,41529.0,41523.0,0.12431189]
[1641912958745,0.0001,41529.0,41524.0,0.419355]
[1641912958945,0.00126631,41539.0,41526.0,1.3]
[1641912959144,0.00653713,41544.0,41532.0,0.060185]
[1641912959341,0.00069349,41533.0,41532.0,0.060185]
[1641912959543,0.00069349,41533.0,41532.0,1.6318917]
[1641912959743,0.00069349,41533.0,41532.0,1.60891794]
[1641912960046,0.00069349,41533.0,41532.0,1.70891794]
[1641912960495,0.005,41533.0,41532.0,1.73491794]
[1641912961793,0.00035226,41535.0,41532.0,1.70891794]
[1641912962194,0.00035226,41535.0,41532.0,1.4443]
[1641912962394,0.00035226,41535.0,41532.0,1.4673]
[1641912962596,0.00635226,41535.0,41532.0,0.1673]
[1641912962794,0.006,41535.0,41532.0,0.1673]
[1641912962995,0.006,41535.0,41532.0,0.023]
[1641912963794,0.00062719,41536.0,41531.0,0.27199515]
[1641912963996,0.00073021,41536.0,41531.0,0.27199515]
[1641912964437,0.00573021,41536.0,41531.0,0.29299515]
[1641912965837,0.00073021,41536.0,41531.0,0.27199515]
[1641912966439,0.00673021,41536.0,41531.0,0.29399515]
[1641912966640,0.00673021,41536.0,41531.0,0.23560372]
[1641912966840,0.00673021,41536.0,41532.0,0.419355]
[1641912967041,0.00673021,41536.0,41532.0,0.9004013]
[1641912967242,0.00120313,41548.0,41533.0,0.31885706]
[1641912967443,0.00120313,41548.0,41534.0,0.0443]
[1641912967644,0.00068578,41536.0,41534.0,0.0443]
[1641912967847,0.00068578,41536.0,41535.0,2.52462374]
[1641912968086,0.00068578,41536.0,41535.0,2.66892374]
[1641912968689,0.00068578,41536.0,41535.0,2.78927402]
[1641912968891,0.00120313,41548.0,41535.0,2.78927402]
[1641912969090,0.00120313,41548.0,41536.0,0.33127621]
[1641912969291,0.00120313,41548.0,41537.0,0.0443]
[1641912969490,0.00120313,41548.0,41542.0,0.27745139]
[1641912969890,0.120364,41550.0,41543.0,0.0443]
[1641912970091,0.97752766,41565.0,41543.0,0.0443]
[1641912970092,0.00127604,41558.0,41544.0,0.69391206]
[1641912970292,0.060166,41556.0,41547.0,0.0012359]
[1641912970493,0.060166,41556.0,41549.0,0.29188667]
[1641912970691,0.060166,41556.0,41549.0,0.53119424]
[1641912970891,0.060166,41556.0,41551.0,0.36728277]
[1641912971091,0.069802,41556.0,41551.0,0.46728277]
[1641912971297,0.00083999,41556.0,41551.0,0.46728277]
[1641912971493,0.37003148,41565.0,41552.0,1.3]
[1641912971749,0.04198897,41561.0,41556.0,0.30140897]
[1641912971942,0.03713112,41562.0,41552.0,1.4012128]
[1641912972144,0.120329,41560.0,41552.0,0.1012128]
[1641912972343,1.27326793,41558.0,41551.0,0.0443]
[1641912972542,0.060174,41556.0,41551.0,0.0443]
[1641912972741,0.30794561,41555.0,41551.0,0.0443]
[1641912972940,0.0350838,41554.0,41551.0,0.0443]
[1641912973145,0.03453704,41553.0,41551.0,0.0443]
[1641912973342,0.04434899,41552.0,41551.0,0.0443]
[1641912973543,0.09588835,41552.0,41551.0,0.0443]
[1641912974941,0.05,41552.0,41551.0,0.0443]
[1641912975342,0.05,41552.0,41551.0,0.419355]
[1641912975590,0.00518824,41558.0,41551.0,0.1443]
[1641912975792,0.04077019,41558.0,41551.0,0.1443]
[1641912976191,0.009635,41561.0,41551.0,0.1443]
[1641912976390,0.1,41559.0,41551.0,0.1443]
[1641912976590,0.05,41559.0,41551.0,0.1443]
[1641912976795,0.03377369,41560.0,41551.0,0.0443]
[1641912976992,0.00082965,41557.0,41551.0,0.0443]
[1641912977192,0.00082965,41557.0,41552.0,0.3155034]
[1641912977397,0.009635,41561.0,41552.0,0.3155034]
[1641912977398,0.009635,41561.0,41554.0,1.3012776]
[1641912977594,0.009635,41561.0,41556.0,1.3]
[1641912977794,0.009635,41561.0,41556.0,1.3443]
[1641912977995,0.009635,41561.0,41556.0,1.4443]
[1641912978394,0.060162,41560.0,41556.0,1.4443]
[1641912979345,0.059635,41561.0,41556.0,1.4443]
[1641912979543,0.059635,41561.0,41556.0,1.69078176]
[1641912979746,0.059635,41561.0,41557.0,0.31778969]
[1641912979945,0.009635,41561.0,41558.0,0.68441495]
[1641912980146,3.5e-05,41561.0,41559.0,0.46864552]
[1641912980346,3.5e-05,41561.0,41560.0,0.74021134]
[1641912980545,3.5e-05,41561.0,41560.0,0.84021134]
[1641912981945,3.5e-05,41561.0,41560.0,0.417355]
[1641912982148,0.00081358,41562.0,41560.0,0.0443]
[1641912982344,0.03375652,41564.0,41555.0,0.00085899]
[1641912982345,0.00081358,41563.0,41555.0,0.00085899]
[1641912982547,0.03523021,41563.0,41555.0,0.00085899]
[1641912982990,0.04047026,41559.0,41555.0,0.00085899]
[1641912983191,0.10189169,41560.0,41555.0,0.00085899]
[1641912983392,0.15189169,41560.0,41555.0,0.00171797]
[1641912983593,0.09116259,41559.0,41555.0,0.00085898]
[1641912983790,0.04772593,41558.0,41555.0,0.00085898]
[1641912984190,0.03934958,41556.0,41555.0,0.00085898]
[1641912984393,0.36194458,41556.0,41555.0,0.00085898]
[1641912984591,0.322595,41556.0,41555.0,0.00085898]
[1641912984790,0.322595,41556.0,41554.0,0.00085896]
[1641912984991,0.372595,41556.0,41554.0,0.00085896]
[1641912985394,0.89016899,41555.0,41554.0,0.00085896]
[1641912985595,1.19016899,41555.0,41554.0,0.00085896]
[1641912985792,2.46216899,41555.0,41554.0,0.00085896]
[1641912985992,1.47492496,41554.0,41553.0,0.00067193]
[1641912986198,1.272,41550.0,41545.0,0.00268825]
[1641912986395,0.2738718,41546.0,41545.0,0.00268825]
[1641912986594,0.3238718,41546.0,41545.0,0.50268825]
[1641912986842,0.05,41546.0,41545.0,0.50268825]
[1641912987043,0.110191,41550.0,41545.0,0.5]
[1641912987244,0.05,41550.0,41545.0,0.5]
[1641912987440,0.05,41550.0,41549.0,0.32164098]
[1641912987642,0.63404037,41563.0,41549.0,0.80194336]
[1641912987941,0.7353153,41563.0,41549.0,0.42711536]
[1641912988139,0.7353153,41563.0,41549.0,0.52711536]